fUSD/lending_fUSD_20260506
["ID","MTS","AMOUNT","RATE_DAILY","PERIOD"]
[421678435,1778039452000,-723.635431,0.000395,30]
[421678434,1778039452000,-254.415554,0.000395,30]
[421678442,1778039452000,-151.0,0.000395,30]
[421678441,1778039452000,-151.0,0.000395,30]
[421678443,1778039452000,-151.0,0.000395,30]
[421678444,1778039452000,-479.870062,0.000395,30]
[421678451,1778039452000,-151.0,0.000395,30]
[421678445,1778039452000,-479.870062,0.000395,30]
[421678432,1778039452000,-254.415554,0.000395,30]
[421678475,1778039452000,-500.0,0.00039726,15]
[421678485,1778039452000,-500.0,0.00039726,15]
[421678480,1778039452000,-500.0,0.00039726,15]
[421678508,1778039452000,-500.0,0.00039726,15]
[421678509,1778039452000,-500.0,0.00039726,15]
[421678510,1778039452000,-500.0,0.00039726,15]
[421678511,1778039452000,-2108.40952971,0.00039726,15]
[421678512,1778039452000,-2108.40952971,0.00039726,15]
[421678517,1778039452000,-2108.40952971,0.00039726,15]
[421678515,1778039452000,-2108.40952971,0.00039726,15]
[421678514,1778039452000,-2108.40952971,0.00039726,15]
[421678513,1778039452000,-2108.40952971,0.00039726,15]
[421678516,1778039452000,-2108.40952971,0.00039726,15]
[421678519,1778039452000,-2108.40952971,0.00039726,15]
[421678507,1778039452000,-500.0,0.00039726,15]
[421678522,1778039452000,-2108.40952971,0.00039726,15]
[421678521,1778039452000,-2108.40952971,0.00039726,15]
[421678525,1778039452000,-2108.40952971,0.00039726,15]
[421678523,1778039452000,-2108.40952971,0.00039726,15]
[421678526,1778039452000,-2108.40952971,0.00039726,15]
[421678527,1778039452000,-2108.40952971,0.00039726,15]
[421678524,1778039452000,-2108.40952971,0.00039726,15]
[421678531,1778039452000,-2108.40952971,0.00039726,15]
[421678528,1778039452000,-2108.40952971,0.00039726,15]
[421678529,1778039452000,-2108.40952971,0.00039726,15]
[421678530,1778039452000,-2108.40952971,0.00039726,15]
[421678473,1778039452000,-500.0,0.00039726,15]
[421678520,1778039452000,-2108.40952971,0.00039726,15]
[421678504,1778039452000,-500.0,0.00039726,15]
[421678518,1778039452000,-2108.40952971,0.00039726,15]
[421678496,1778039452000,-500.0,0.00039726,15]
[421678497,1778039452000,-500.0,0.00039726,15]
[421678479,1778039452000,-237.50031034,0.00039726,15]
[421678477,1778039452000,-500.0,0.00039726,15]
[421678478,1778039452000,-500.0,0.00039726,15]
[421678481,1778039452000,-500.0,0.00039726,15]
[421678482,1778039452000,-500.0,0.00039726,15]
[421678484,1778039452000,-500.0,0.00039726,15]
[421678493,1778039452000,-500.0,0.00039726,15]
[421678486,1778039452000,-500.0,0.00039726,15]
[421678488,1778039452000,-500.0,0.00039726,15]
[421678490,1778039452000,-500.0,0.00039726,15]
[421678489,1778039452000,-500.0,0.00039726,15]
[421678491,1778039452000,-500.0,0.00039726,15]
[421678483,1778039452000,-500.0,0.00039726,15]
[421678494,1778039452000,-500.0,0.00039726,15]
[421678498,1778039452000,-500.0,0.00039726,15]
[421678503,1778039452000,-500.0,0.00039726,15]
[421678500,1778039452000,-500.0,0.00039726,15]
[421678502,1778039452000,-500.0,0.00039726,15]
[421678495,1778039452000,-500.0,0.00039726,15]
[421678499,1778039452000,-500.0,0.00039726,15]
[421678501,1778039452000,-500.0,0.00039726,15]
[421678506,1778039452000,-500.0,0.00039726,15]
[421678487,1778039452000,-500.0,0.00039726,15]
[421678492,1778039452000,-500.0,0.00039726,15]
[421678505,1778039452000,-500.0,0.00039726,15]
[421678574,1778039453000,-514.84594503,0.0004,2]
[421678568,1778039453000,-155.53159687,0.0004,90]
[421678572,1778039453000,-319.12528642,0.0004,2]
[421678569,1778039453000,-319.54666784,0.0004,2]
[421678570,1778039453000,-6475.7775336,0.0004,120]
[421678565,1778039453000,-1583.60000411,0.0004,2]
[421678567,1778039453000,-178.78069179,0.0004,120]
[421678560,1778039453000,-153.33,0.0003999,120]
[421678561,1778039453000,-3646.09057343,0.00039999,120]
[421678563,1778039453000,-413.25656224,0.0004,120]
[421678576,1778039453000,-2000.0,0.0004,120]
[421678571,1778039453000,-349.99248221,0.0004,3]
[421678573,1778039453000,-336.11527038,0.0004,3]
[421678587,1778039453000,-3145.93,0.0004029,60]
[421678575,1778039453000,-160.0,0.0004,3]
[421678578,1778039453000,-150.0,0.0004,120]
[421678577,1778039453000,-289.47091096,0.0004,60]
[421678581,1778039453000,-2208.0803,0.00040029,2]
[421678592,1778039453000,-153.33,0.0004029,120]
[421678580,1778039453000,-150.0,0.0004,120]
[421678591,1778039453000,-20858.45,0.0004029,60]
[421678588,1778039453000,-333.72,0.0004029,60]
[421678582,1778039453000,-7548.36381456,0.0004009,2]
[421678584,1778039453000,-153.33,0.0004019,120]
[421678583,1778039453000,-153.33,0.0004009,120]
[421678586,1778039453000,-2208.0811,0.00040269,2]
[421678564,1778039453000,-395.81661262,0.0004,2]
[421678579,1778039453000,-150.0,0.0004,120]
[421678562,1778039453000,-2005.9555727,0.00039999,30]
[421678535,1778039453000,-2108.40952971,0.00039726,15]
[421678559,1778039453000,-346.1528151,0.000399,120]
[421678533,1778039453000,-2108.40952971,0.00039726,15]
[421678537,1778039453000,-2108.40952971,0.00039726,15]
[421678590,1778039453000,-439.39,0.0004029,60]
[421678539,1778039453000,-2108.40952971,0.00039726,15]
[421678532,1778039453000,-2108.40952971,0.00039726,15]
[421678536,1778039453000,-2108.40952971,0.00039726,15]
[421678534,1778039453000,-2108.40952971,0.00039726,15]
[421678538,1778039453000,-2108.40952971,0.00039726,15]
[421678540,1778039453000,-2108.40952971,0.00039726,15]
[421678543,1778039453000,-2108.40952971,0.00039726,15]
[421678554,1778039453000,-2208.0803,0.0003979,2]
[421678550,1778039453000,-2108.40952972,0.00039726,15]
[421678541,1778039453000,-2108.40952971,0.00039726,15]
[421678542,1778039453000,-2108.40952971,0.00039726,15]
[421678549,1778039453000,-2108.40952972,0.00039726,15]
[421678545,1778039453000,-2108.40952971,0.00039726,15]
[421678544,1778039453000,-2108.40952971,0.00039726,15]
[421678551,1778039453000,-2108.40952972,0.00039726,15]
[421678552,1778039453000,-2108.40952972,0.00039726,15]
[421678553,1778039453000,-157.0,0.00039735,3]
[421678546,1778039453000,-2108.40952971,0.00039726,15]
[421678548,1778039453000,-2108.40952972,0.00039726,15]
[421678547,1778039453000,-2108.40952972,0.00039726,15]
[421678556,1778039453000,-152.0,0.00039796,7]
[421678557,1778039453000,-153.33,0.0003989,120]
[421678558,1778039453000,-215.99626,0.000399,120]
[421678566,1778039453000,-588.95083469,0.0004,120]
[421678555,1778039453000,-153.33,0.0003979,120]
[421678585,1778039453000,-1934.38338737,0.00040191,30]
[421678589,1778039453000,-2138.58,0.0004029,60]
[421678644,1778039453000,-500.0,0.00040822,60]
[421678625,1778039453000,-218.61009254,0.00040822,60]
[421678624,1778039453000,-500.0,0.00040822,60]
[421678630,1778039453000,-500.0,0.00040822,60]
[421678628,1778039453000,-500.0,0.00040822,60]
[421678631,1778039453000,-500.0,0.00040822,60]
[421678632,1778039453000,-500.0,0.00040822,60]
[421678640,1778039453000,-512.34278439,0.00040822,60]
[421678629,1778039453000,-500.0,0.00040822,60]
[421678641,1778039453000,-500.0,0.00040822,60]
[421678639,1778039453000,-500.0,0.00040822,60]
[421678637,1778039453000,-500.0,0.00040822,60]
[421678638,1778039453000,-500.0,0.00040822,60]
[421678634,1778039453000,-500.0,0.00040822,60]
[421678623,1778039453000,-150.0,0.00040822,60]
[421678635,1778039453000,-500.0,0.00040822,60]
[421678643,1778039453000,-500.0,0.00040822,60]
[421678653,1778039453000,-500.0,0.00040822,2]
[421678645,1778039453000,-500.0,0.00040822,60]
[421678642,1778039453000,-500.0,0.00040822,60]
[421678649,1778039453000,-500.0,0.00040822,60]
[421678652,1778039453000,-251.17490165,0.00040822,60]
[421678647,1778039453000,-506.33798591,0.00040822,60]
[421678651,1778039453000,-500.0,0.00040822,60]
[421678648,1778039453000,-500.0,0.00040822,60]
[421678593,1778039453000,-156.90090257,0.00040318,120]
[421678646,1778039453000,-500.0,0.00040822,60]
[421678650,1778039453000,-500.0,0.00040822,60]
[421678654,1778039453000,-500.0,0.00040822,2]
[421678636,1778039453000,-500.0,0.00040822,60]
[421678618,1778039453000,-150.0,0.00040822,60]
[421678633,1778039453000,-500.0,0.00040822,60]
[421678621,1778039453000,-150.0,0.00040822,60]
[421678595,1778039453000,-10000.0,0.00040331,4]
[421678599,1778039453000,-820.13691087,0.0004047,30]
[421678626,1778039453000,-500.0,0.00040822,60]
[421678603,1778039453000,-156.79057218,0.000405,120]
[421678596,1778039453000,-504.0,0.00040353,16]
[421678602,1778039453000,-153.33,0.0004049,120]
[421678600,1778039453000,-820.13691085,0.0004047,30]
[421678597,1778039453000,-1724.6297412,0.00040389,2]
[421678594,1778039453000,-2000.0,0.00040331,4]
[421678605,1778039453000,-350.0,0.00040577,7]
[421678601,1778039453000,-820.13691085,0.0004047,30]
[421678598,1778039453000,-153.33,0.0004039,120]
[421678607,1778039453000,-171.82,0.000406,30]
[421678613,1778039453000,-153.33,0.0004079,120]
[421678604,1778039453000,-1150.74582531,0.000405,120]
[421678606,1778039453000,-153.33,0.0004059,120]
[421678612,1778039453000,-350.0,0.0004078,7]
[421678620,1778039453000,-150.0,0.00040822,60]
[421678622,1778039453000,-150.0,0.00040822,60]
[421678619,1778039453000,-188.54851579,0.00040822,60]
[421678627,1778039453000,-500.0,0.00040822,60]
[421678617,1778039453000,-600.0,0.0004081,21]
[421678616,1778039453000,-500.0,0.0004081,21]
[421678614,1778039453000,-9049.66220945,0.000408,60]
[421678611,1778039453000,-4000.0,0.00040767,60]
[421678610,1778039453000,-9045.91,0.000407,6]
[421678608,1778039453000,-350.0,0.00040657,7]
[421678615,1778039453000,-2000.0,0.000408,120]
[421678609,1778039453000,-153.33,0.0004069,120]
[421678691,1778039454000,-1066.91566972,0.00041079,50]
[421678689,1778039454000,-1073.64461288,0.00041079,50]
[421678690,1778039454000,-1141.47057402,0.00041079,50]
[421678695,1778039454000,-1520.48023964,0.00041084,30]
[421678688,1778039454000,-1093.38439879,0.00041079,50]
[421678687,1778039454000,-1044.68866597,0.00041079,50]
[421678685,1778039454000,-1141.35473818,0.00041079,50]
[421678686,1778039454000,-1101.49389209,0.00041079,50]
[421678694,1778039454000,-150.0,0.00041084,30]
[421678696,1778039454000,-150.0,0.00041084,30]
[421678693,1778039454000,-154.10554824,0.00041079,120]
[421678692,1778039454000,-297.922,0.00041079,30]
[421678707,1778039454000,-164.2845,0.0004116,2]
[421678698,1778039454000,-153.33,0.0004109,120]
[421678700,1778039454000,-1560.0,0.00041096,120]
[421678701,1778039454000,-300.2,0.00041096,120]
[421678699,1778039454000,-152.0,0.00041096,30]
[421678703,1778039454000,-200.0,0.00041096,20]
[421678702,1778039454000,-291.06641213,0.00041096,2]
[421678705,1778039454000,-350.0,0.00041143,4]
[421678706,1778039454000,-5687.7802376,0.00041152,2]
[421678704,1778039454000,-504.0,0.0004113,17]
[421678709,1778039454000,-1865.36488657,0.00041199,30]
[421678680,1778039454000,-157.0,0.00041,90]
[421678697,1778039454000,-166.39269129,0.00041084,30]
[421678679,1778039454000,-78194.19,0.00041,7]
[421678710,1778039454000,-3521.0,0.00041209,7]
[421678681,1778039454000,-156.90090257,0.00041034,120]
[421678657,1778039454000,-500.0,0.00040822,2]
[421678656,1778039454000,-500.0,0.00040822,2]
[421678659,1778039454000,-500.0,0.00040822,2]
[421678665,1778039454000,-500.0,0.00040822,2]
[421678658,1778039454000,-500.0,0.00040822,2]
[421678661,1778039454000,-500.0,0.00040822,2]
[421678663,1778039454000,-500.0,0.00040822,2]
[421678662,1778039454000,-500.0,0.00040822,2]
[421678660,1778039454000,-500.0,0.00040822,2]
[421678664,1778039454000,-500.0,0.00040822,2]
[421678667,1778039454000,-326.77120536,0.00040822,2]
[421678677,1778039454000,-959.76018642,0.00041,120]
[421678668,1778039454000,-991.98513785,0.00040875,2]
[421678666,1778039454000,-500.0,0.00040822,2]
[421678678,1778039454000,-2000.0,0.00041,120]
[421678669,1778039454000,-866.0,0.00040875,2]
[421678676,1778039454000,-413.48352252,0.00041,120]
[421678673,1778039454000,-153.33,0.0004099,120]
[421678672,1778039454000,-181.46,0.00040965,120]
[421678674,1778039454000,-1127.64890688,0.00041,90]
[421678671,1778039454000,-185287.0,0.0004095,60]
[421678675,1778039454000,-275.64036147,0.00041,30]
[421678670,1778039454000,-153.33,0.0004089,120]
[421678684,1778039454000,-1147.52931469,0.00041079,50]
[421678683,1778039454000,-1142.1,0.00041041,120]
[421678682,1778039454000,-30517.3565968,0.00041037,2]
[421678708,1778039454000,-153.363,0.0004119,120]
[421678655,1778039454000,-500.0,0.00040822,2]
[421678719,1778039454000,-5118.01986841,0.000414,120]
[421678741,1778039454000,-500.0,0.00041569,3]
[421678744,1778039454000,-171.82,0.000416,30]
[421678746,1778039454000,-3536.0,0.00041632,2]
[421678748,1778039454000,-925.0,0.00041632,2]
[421678747,1778039454000,-1352.0,0.00041632,2]
[421678745,1778039454000,-624.0,0.00041632,2]
[421678750,1778039454000,-417.0,0.00041632,2]
[421678754,1778039454000,-164.2845,0.0004166,2]
[421678753,1778039454000,-1560.0,0.00041644,120]
[421678752,1778039454000,-600.0,0.00041632,120]
[421678749,1778039454000,-1268.0,0.00041632,2]
[421678751,1778039454000,-3625.0,0.00041632,2]
[421678767,1778039454000,-250.0,0.00041863,120]
[421678766,1778039454000,-1798.80895522,0.00041836,30]
[421678759,1778039454000,-500.0,0.00041778,11]
[421678762,1778039454000,-1000.0,0.000418,30]
[421678755,1778039454000,-1142.1,0.00041694,120]
[421678765,1778039454000,-500.0,0.00041823,107]
[421678757,1778039454000,-156.90090257,0.0004175,120]
[421678756,1778039454000,-500.0,0.00041699,28]
[421678763,1778039454000,-215.64,0.00041811,120]
[421678760,1778039454000,-392.0,0.00041784,2]
[421678758,1778039454000,-208.85,0.00041758,120]
[421678764,1778039454000,-5737.5994,0.00041817,2]
[421678715,1778039454000,-164.2845,0.0004136,2]
[421678737,1778039454000,-500.0,0.00041529,13]
[421678735,1778039454000,-516.0,0.000415,60]
[421678761,1778039454000,-1150.74582531,0.000418,120]
[421678738,1778039454000,-150.0,0.00041558,120]
[421678740,1778039454000,-350.0,0.00041562,4]
[421678712,1778039454000,-31365.55776007,0.00041209,70]
[421678714,1778039454000,-164.2845,0.0004126,2]
[421678716,1778039454000,-189.47926864,0.00041368,120]
[421678718,1778039454000,-157.0,0.0004137,90]
[421678713,1778039454000,-200.0,0.00041256,120]
[421678717,1778039454000,-1560.0,0.0004137,120]
[421678720,1778039454000,-408.0,0.00041401,10]
[421678723,1778039454000,-500.0,0.00041459,60]
[421678722,1778039454000,-500.0,0.00041424,90]
[421678721,1778039454000,-2000.0,0.00041403,120]
[421678729,1778039454000,-558.1042349,0.000415,2]
[421678724,1778039454000,-164.2845,0.0004146,2]
[421678711,1778039454000,-3693.0,0.00041209,7]
[421678728,1778039454000,-154.10554823,0.00041498,120]
[421678734,1778039454000,-516.0,0.000415,60]
[421678742,1778039454000,-500.0,0.0004159,97]
[421678739,1778039454000,-164.2845,0.0004156,2]
[421678726,1778039454000,-20000.0,0.00041468,120]
[421678732,1778039454000,-516.0,0.000415,60]
[421678736,1778039454000,-516.0,0.000415,60]
[421678733,1778039454000,-636.0,0.000415,60]
[421678727,1778039454000,-30213.0,0.00041468,120]
[421678730,1778039454000,-1523.0,0.000415,120]
[421678731,1778039454000,-516.0,0.000415,60]
[421678725,1778039454000,-20000.0,0.00041468,120]
[421678743,1778039454000,-500.0,0.00041599,78]
[421678805,1778039455000,-500.0,0.00041916,120]
[421678803,1778039455000,-500.0,0.00041916,120]
[421678804,1778039455000,-500.0,0.00041916,120]
[421678800,1778039455000,-500.0,0.00041916,120]
[421678794,1778039455000,-504.0,0.00041908,18]
[421678802,1778039455000,-500.0,0.00041916,120]
[421678799,1778039455000,-500.0,0.00041916,120]
[421678796,1778039455000,-151.0,0.00041914,14]
[421678798,1778039455000,-500.0,0.00041916,120]
[421678801,1778039455000,-500.0,0.00041916,120]
[421678806,1778039455000,-500.0,0.00041916,120]
[421678812,1778039455000,-500.0,0.00041916,120]
[421678811,1778039455000,-500.0,0.00041916,120]
[421678809,1778039455000,-500.0,0.00041916,120]
[421678810,1778039455000,-500.0,0.00041916,120]
[421678808,1778039455000,-500.0,0.00041916,120]
[421678813,1778039455000,-500.0,0.00041916,120]
[421678815,1778039455000,-500.0,0.00041916,120]
[421678814,1778039455000,-500.0,0.00041916,120]
[421678816,1778039455000,-592.7767285,0.00041916,120]
[421678817,1778039455000,-259.20048071,0.00041916,120]
[421678797,1778039455000,-500.0,0.00041914,114]
[421678825,1778039455000,-500.0,0.00041916,120]
[421678807,1778039455000,-500.0,0.00041916,120]
[421678795,1778039455000,-500.0,0.00041913,14]
[421678777,1778039455000,-450.27,0.0004189,120]
[421678791,1778039455000,-150.54233273,0.000419,120]
[421678818,1778039455000,-200.0,0.00041916,120]
[421678768,1778039455000,-250.0,0.00041863,120]
[421678769,1778039455000,-250.0,0.00041863,120]
[421678779,1778039455000,-160.0,0.000419,79]
[421678772,1778039455000,-250.0,0.00041863,120]
[421678780,1778039455000,-160.0,0.000419,79]
[421678771,1778039455000,-250.0,0.00041863,120]
[421678770,1778039455000,-250.0,0.00041863,120]
[421678773,1778039455000,-250.0,0.00041863,120]
[421678774,1778039455000,-250.0,0.00041863,120]
[421678776,1778039455000,-363.45,0.00041863,120]
[421678793,1778039455000,-150.54233273,0.000419,120]
[421678775,1778039455000,-250.0,0.00041863,120]
[421678782,1778039455000,-150.5423328,0.000419,120]
[421678792,1778039455000,-150.54233273,0.000419,120]
[421678781,1778039455000,-700.0,0.000419,15]
[421678785,1778039455000,-150.54233273,0.000419,120]
[421678786,1778039455000,-150.54233273,0.000419,120]
[421678789,1778039455000,-150.54233273,0.000419,120]
[421678788,1778039455000,-150.54233273,0.000419,120]
[421678783,1778039455000,-3123.12505617,0.000419,2]
[421678784,1778039455000,-150.54233273,0.000419,120]
[421678787,1778039455000,-150.54233273,0.000419,120]
[421678790,1778039455000,-150.54233273,0.000419,120]
[421678778,1778039455000,-500.0,0.00041899,79]
[421678821,1778039455000,-200.0,0.00041916,120]
[421678824,1778039455000,-500.0,0.00041916,120]
[421678819,1778039455000,-200.0,0.00041916,120]
[421678849,1778039455000,-352.86664135,0.00041916,120]
[421678851,1778039455000,-162.380719,0.00041916,120]
[421678856,1778039455000,-500.0,0.00041916,120]
[421678858,1778039455000,-174.61919141,0.00041916,120]
[421678857,1778039455000,-7965.41053268,0.00041916,120]
[421678859,1778039455000,-500.0,0.00041916,120]
[421678852,1778039455000,-500.0,0.00041916,120]
[421678853,1778039455000,-7681.20591386,0.00041916,120]
[421678855,1778039455000,-168.3888056,0.00041916,120]
[421678854,1778039455000,-500.0,0.00041916,120]
[421678861,1778039455000,-8260.13072239,0.00041916,120]
[421678860,1778039455000,-500.0,0.00041916,120]
[421678863,1778039455000,-500.0,0.00041916,120]
[421678866,1778039455000,-151.0,0.00041916,120]
[421678862,1778039455000,-181.08010149,0.00041916,120]
[421678867,1778039455000,-187.78006525,0.00041916,120]
[421678868,1778039455000,-500.0,0.00041916,120]
[421678869,1778039455000,-500.0,0.00041916,120]
[421678873,1778039455000,-194.72792766,0.00041916,120]
[421678871,1778039455000,-8882.6885148,0.00041916,120]
[421678870,1778039455000,-500.0,0.00041916,120]
[421678872,1778039455000,-151.0,0.00041916,120]
[421678874,1778039455000,-500.0,0.00041916,120]
[421678875,1778039455000,-518.5,0.00041916,120]
[421678865,1778039455000,-8565.75555911,0.00041916,120]
[421678850,1778039455000,-500.0,0.00041916,120]
[421678864,1778039455000,-500.0,0.00041916,120]
[421678847,1778039455000,-500.0,0.00041916,120]
[421678820,1778039455000,-200.0,0.00041916,120]
[421678846,1778039455000,-7407.141672,0.00041916,120]
[421678822,1778039455000,-500.0,0.00041916,120]
[421678823,1778039455000,-500.0,0.00041916,120]
[421678826,1778039455000,-151.0,0.00041916,120]
[421678836,1778039455000,-311.98948468,0.00041916,120]
[421678827,1778039455000,-152.15955082,0.00041916,120]
[421678828,1778039455000,-500.0,0.00041916,2]
[421678830,1778039455000,-500.0,0.00041916,30]
[421678829,1778039455000,-500.0,0.00041916,7]
[421678835,1778039455000,-154.36154311,0.00041916,120]
[421678832,1778039455000,-500.0,0.00041916,31]
[421678831,1778039455000,-500.0,0.00041916,120]
[421678838,1778039455000,-500.0,0.00041916,120]
[421678834,1778039455000,-642.94,0.00041916,120]
[421678837,1778039455000,-6888.0,0.00041916,120]
[421678839,1778039455000,-151.0,0.00041916,120]
[421678848,1778039455000,-219.55237565,0.00041916,120]
[421678840,1778039455000,-500.0,0.00041916,120]
[421678841,1778039455000,-7142.856,0.00041916,120]
[421678845,1778039455000,-156.587,0.00041916,120]
[421678842,1778039455000,-200.0,0.00041916,120]
[421678844,1778039455000,-500.0,0.00041916,120]
[421678833,1778039455000,-620.0,0.00041916,120]
[421678843,1778039455000,-520.0,0.00041916,120]
[421678923,1778039456000,-151.0,0.00041916,120]
[421678901,1778039456000,-151.0,0.00041916,120]
[421678918,1778039456000,-500.0,0.00041916,120]
[421678914,1778039456000,-500.0,0.00041916,120]
[421678913,1778039456000,-151.0,0.00041916,120]
[421678910,1778039456000,-151.0,0.00041916,120]
[421678911,1778039456000,-500.0,0.00041916,120]
[421678905,1778039456000,-500.0,0.00041916,120]
[421678907,1778039456000,-151.0,0.00041916,120]
[421678912,1778039456000,-500.0,0.00041916,120]
[421678909,1778039456000,-500.0,0.00041916,120]
[421678924,1778039456000,-151.0,0.00041916,120]
[421678929,1778039456000,-151.0,0.00041916,120]
[421678915,1778039456000,-592.53712416,0.00041916,120]
[421678919,1778039456000,-151.0,0.00041916,120]
[421678921,1778039456000,-151.0,0.00041916,120]
[421678917,1778039456000,-1734.62772924,0.00041916,30]
[421678922,1778039456000,-151.0,0.00041916,120]
[421678920,1778039456000,-151.0,0.00041916,120]
[421678925,1778039456000,-1030.0,0.00041916,120]
[421678930,1778039456000,-1107.63007,0.00041916,120]
[421678928,1778039456000,-151.0,0.00041916,120]
[421678927,1778039456000,-1068.11,0.00041916,120]
[421678926,1778039456000,-151.0,0.00041916,120]
[421678906,1778039456000,-500.0,0.00041916,120]
[421678916,1778039456000,-151.0,0.00041916,120]
[421678908,1778039456000,-500.0,0.00041916,120]
[421678877,1778039456000,-3235.46988921,0.00041916,120]
[421678903,1778039456000,-500.0,0.00041916,120]
[421678876,1778039456000,-500.0,0.00041916,120]
[421678879,1778039456000,-159.12390888,0.00041916,120]
[421678931,1778039456000,-151.0,0.00041916,120]
[421678880,1778039456000,-500.0,0.00041916,120]
[421678882,1778039456000,-537.6845,0.00041916,120]
[421678878,1778039456000,-151.0,0.00041916,120]
[421678881,1778039456000,-500.0,0.00041916,120]
[421678883,1778039456000,-151.0,0.00041916,120]
[421678884,1778039456000,-500.0,0.00041916,120]
[421678885,1778039456000,-557.5788265,0.00041916,120]
[421678888,1778039456000,-500.0,0.00041916,120]
[421678887,1778039456000,-500.0,0.00041916,120]
[421678904,1778039456000,-151.0,0.00041916,120]
[421678886,1778039456000,-151.0,0.00041916,120]
[421678898,1778039456000,-151.0,0.00041916,120]
[421678899,1778039456000,-500.0,0.00041916,120]
[421678892,1778039456000,-500.0,0.00041916,120]
[421678890,1778039456000,-151.0,0.00041916,120]
[421678895,1778039456000,-500.0,0.00041916,120]
[421678894,1778039456000,-151.0,0.00041916,120]
[421678896,1778039456000,-500.0,0.00041916,120]
[421678891,1778039456000,-500.0,0.00041916,120]
[421678893,1778039456000,-599.60298507,0.00041916,120]
[421678897,1778039456000,-256.50073446,0.00041916,120]
[421678900,1778039456000,-500.0,0.00041916,120]
[421678902,1778039456000,-500.0,0.00041916,120]
[421678889,1778039456000,-578.20924308,0.00041916,120]
[421678934,1778039456000,-151.0,0.00041916,120]
[421678984,1778039456000,-500.0,0.00041917,120]
[421678935,1778039456000,-151.0,0.00041916,120]
[421678963,1778039456000,-533.31720985,0.00041917,120]
[421678968,1778039456000,-500.0,0.00041917,120]
[421678970,1778039456000,-500.0,0.00041917,120]
[421678966,1778039456000,-500.0,0.00041917,120]
[421678965,1778039456000,-500.0,0.00041917,120]
[421678967,1778039456000,-500.0,0.00041917,120]
[421678969,1778039456000,-547.91788544,0.00041917,120]
[421678971,1778039456000,-608.13379372,0.00041917,120]
[421678973,1778039456000,-160.04640632,0.00041917,120]
[421678974,1778039456000,-500.0,0.00041917,120]
[421678975,1778039456000,-500.0,0.00041917,120]
[421678976,1778039456000,-500.0,0.00041917,120]
[421678977,1778039456000,-500.0,0.00041917,120]
[421678980,1778039456000,-500.0,0.00041917,120]
[421678979,1778039456000,-500.0,0.00041917,120]
[421678981,1778039456000,-500.0,0.00041917,120]
[421678982,1778039456000,-500.0,0.00041917,120]
[421678985,1778039456000,-500.0,0.00041917,120]
[421678988,1778039456000,-500.0,0.00041917,120]
[421678987,1778039456000,-500.0,0.00041917,120]
[421678986,1778039456000,-500.0,0.00041917,120]
[421678989,1778039456000,-500.0,0.00041917,120]
[421678983,1778039456000,-500.0,0.00041917,120]
[421678990,1778039456000,-500.0,0.00041917,120]
[421678932,1778039456000,-351.68276222,0.00041916,120]
[421678964,1778039456000,-500.0,0.00041917,120]
[421678961,1778039456000,-500.0,0.00041917,120]
[421678978,1778039456000,-500.0,0.00041917,120]
[421678962,1778039456000,-500.0,0.00041917,120]
[421678972,1778039456000,-157.21051205,0.00041917,120]
[421678937,1778039456000,-151.0,0.00041916,120]